[Event "Julius Baer Generation Cup Prelims 2022"]
[Site "Online"]
[Date "2022.09.14"]
[Round "10.8"]
[White "Yoo, Christopher Woojin"]
[Black "Wojtaszek, Radoslaw"]
[Result "1-0"]
[ECO "B90"]
[WhiteElo "2563"]
[BlackElo "2696"]
[Annotator "TA"]
[PlyCount "139"]
[EventDate "2022.09.12"]
[EventType "tourn"]
[EventCountry "NET"]
[SourceTitle "playchess.com"]
[Source "ChessBase"]
[SourceQuality "1"]
[TimeControl "900+10"]

{[%evp 13,139,9,8,-5,35,24,23,22,31,8,47,39,52,31,37,24,32,41,169,179,200,185,194,183,183,188,183,185,202,131,128,101,102,98,127,139,142,142,136,138,129,129,128,128,120,112,114,150,142,137,196,200,199,116,164,108,187,50,64,70,53,0,0,0,0,0,0,0,0,0,9,8,36,28,28,28,208,75,58,0,209,180,228,188,207,183,214,191,552,543,590,584,564,563,520,473,481,355,533,519,460,280,769,520,547,461,485,467,494,423,371,342,569,560,1112,1039,5171,5533,4226,4208,7022,6803,29965,29969,29966,29968,29959,5547]} 1. e4 {[%emt 0:00:00]} c5 {[%emt 0:00:00]} 2. Nf3 {[%emt 0:00:02]} d6 {[%emt 0:00:01]} 3. d4 {[%emt 0:00:02]} cxd4 {[%emt 0:00:00]} 4. Nxd4 {[%emt 0:00:01]} Nf6 {[%emt 0:00:01]} 5. Nc3 {[%emt 0:00:00]} a6 {[%emt 0:00:00]} 6. Be3 {[%emt 0:00:01]} e5 {[%emt 0:00:04]} 7. Nf3 {[%emt 0:00:02][%cal Bd4f3,Bf3d2,Bd2c4,Bc4e3,Be3d5][%mdl 32]} Be7 {[%emt 0:00:07] CPLX 2.1} 8. Nd2 {[%emt 0:00:02] CPLX 2.1 13 (Bf1-c4) (=13). B90: Sicilian Najdorf: Unusual White 6th moves, 6 Be3 Ng4 and 6 Be3 e5.} Ng4 {[%emt 0:01:14] CPLX 2.1 40 (b7-b5) (=20)} 9. Nc4 {[%emt 0:00:33] aiming for Bb6. BESTDEEP} Nxe3 {[%emt 0:00:02] EASY} 10. Nxe3 {[%emt 0:00:00] RECAPT. White has an edge.} O-O {[%emt 0:00:25] [#] CPLX 2.0 9 (Bc8-e6) (=12)} 11. Be2 $146 {[%emt 0:02:44] CPLX 2.0 23 (Nc3-d5) (=9)} ({Predecessor:} 11. Ncd5 Be6 12. Be2 Nd7 13. O-O Rc8 14. c3 Bg5 15. Nf5 Bxf5 16. exf5 Re8 17. Qb3 {½-½ (34) Karthikeyan,M (2602)-Visakh,N (2518) Moscow 2020}) 11... Nd7 {[%emt 0:01:05] CPLX 2.0 39 (Be7-g5) (=18)} 12. Bg4 {[%emt 0:01:58] BESTDEEP} Bg5 {[%emt 0:00:06] CPLX 2.2 13 (b7-b5) (=17)} 13. Ned5 {[%emt 0:00:08][%cal Oh2h4] CPLX 2.3 21 (Bg4xd7) (=10)} (13. Qxd6 $2 Bxe3 14. Bxd7 Bd4 $19) 13... Nc5 {[%emt 0:00:37] BESTDEEP} 14. Bxc8 {[%emt 0:00:59] CPLX 2.8} Rxc8 {[%emt 0:00:00] RECAPT} 15. O-O {[%emt 0:00:02] CPLX 2.3 0 (a2-a4) (=7)} f5 {[%emt 0:00:34] RELBLUND 128 (Nc5-e6) (=25)} ({Black should try} 15... Ne6 $14) 16. exf5 $18 {[%emt 0:00:40] DEEPSTRONG=>BLUNDERREACT} Rxf5 {[%emt 0:00:02] CPLX 2.7 21 (Bg5-e7) (=25)} 17. b4 $1 {[%emt 0:01:24] DEEPSTRONG} Ne6 {[%emt 0:03:07] CPLX 2.8} 18. Ne4 $1 {[%emt 0:00:15][%cal Oe4d6] And now Nxd6! would win. DEEPSTRONG} Rc6 {[%emt 0:01:44] CPLX 2.7 0 (Kg8-h8) (=21)} 19. Qg4 {[%emt 0:01:51] CPLX 2.7} g6 {[%emt 0:00:05] CPLX 3.0} 20. Ng3 {[%emt 0:00:25] Pair of Knights! CPLX 3.1} h5 {[%emt 0:00:33] CPLX 3.0 17 (Qd8-f8) (=19)} 21. Nxh5 {[%emt 0:01:14][%cal Oh2h4] Threatens to win with h4! MISS-Qg4-e4 71 (Qg4-e4) (=9)} Nc7 {[%emt 0:01:19] DEEPSTRONG} (21... Rxc2 $2 22. Ne3 Qf8 23. Nxc2 $18) 22. Rad1 {[%emt 0:01:44][%cal Oh2h4] CPLX 4.1 27 (Nd5xc7) (=10)} Nxd5 {[%emt 0:01:34] EASY} (22... Rxc2 $2 23. Ne3 Rcxf2 24. Rxf2 $18) 23. Rxd5 {[%emt 0:00:00][%cal Oh2h4] Hoping for h4! RECAPT} Kf7 {[%emt 0:00:01] CPLX 3.4 29 (Kg8-h7) (=17)} (23... Rxc2 $2 24. Ng3 (24. h4 Qf8 $11) 24... Rf4 25. Qe6+ Kg7 26. Rxd6 $18) 24. Ng3 {[%emt 0:02:37] CPLX 4.2} Rf4 {[%emt 0:00:04] EASY} 25. Qe2 {[%emt 0:00:01] BESTDEEP} Rxb4 {[%emt 0:00:26] CPLX 2.9} 26. Ne4 {[%emt 0:00:02][%cal Of2f4] CPLX 3.8 0 (c2-c3) (=8)} Be7 {[%emt 0:00:01] BESTDEEP} 27. c3 $36 {[%emt 0:00:12][%mdl 2048] White is on the roll. CPLX 3.7} Rb5 {[%emt 0:01:31] BESTDEEP} 28. Rxb5 {[%emt 0:00:32] EASY} axb5 {[%emt 0:00:00] RECAPT} 29. Qxb5 {[%emt 0:00:01] RECAPT} d5 {[%emt 0:00:26] BESTDEEP} 30. Rd1 {[%emt 0:00:16] EASY} (30. Qxb7 $2 Rb6 31. Qa7 (31. Ng5+ $2 Kg8 $19) 31... dxe4 $19) 30... Rb6 {[%emt 0:00:03] EASY} 31. Qe2 {[%emt 0:00:13] White is more active. BESTDEEP} ({Don't go for} 31. Qd3 $2 dxe4 32. Qc4+ Kg7 33. Rxd8 Rb1+ 34. Qf1 Rxf1+ 35. Kxf1 Bxd8 $19) 31... Qd7 {[%emt 0:00:39] CPLX 3.4 59 (Rb6-c6) (=14)} (31... Rc6 $16 32. h3 (32. Qb5 Rb6 $16) 32... Qa5) 32. c4 $1 {[%emt 0:00:39] CPLX 3.4} d4 {[%emt 0:00:04] EASY} 33. c5 {[%emt 0:00:21] MISSDEEP-h2-h4 83 (h2-h4) (=9)} (33. h4 $1 $18) 33... Ra6 {[%emt 0:00:15] [#] CPLX 4.3 48 (Rb6-c6) (=15)} (33... Rc6 $16) 34. Rb1 {[%emt 0:00:31] CPLX 4.1 56 (h2-h4) (=11)} (34. h4 $1 $18) 34... Qd5 {[%emt 0:00:03] [#] CPLX 4.0 79 (Kf7-g7) (=17)} (34... Kg7 $16) 35. Rb2 {[%emt 0:00:16] RELBLUND 137 (h2-h4) (=15)} (35. h4 $1 $18) 35... d3 {[%emt 0:00:12] CPLX 3.4 14 (Ra6-a4) (=17)} 36. Qf3+ {[%emt 0:00:09] CPLX 3.8} Kg7 {[%emt 0:00:00] EASY} 37. Rd2 {[%emt 0:00:14] CPLX 3.7 53 (Qf3-e3) (=16)} ({Better is} 37. Qe3 $14) 37... Ra4 $11 {[%emt 0:01:31] EASY} 38. Nc3 {[%emt 0:00:16] CPLX 3.9} Qxf3 {[%emt 0:00:04] EASY} 39. gxf3 {[%emt 0:00:00][%mdl 4096] Endgame KRB-KRN. RECAPT} Rd4 {[%emt 0:00:01] CPLX 2.9} 40. Ne4 {[%emt 0:00:02] CPLX 2.7 0 (Nc3-d1) (=15)} Kf7 {[%emt 0:01:17] CPLX 2.8 0 (g6-g5) (=15)} 41. Kf1 {[%emt 0:00:22] BESTDEEP} Ke6 {[%emt 0:00:25] CPLX 2.8 9 (Kf7-e8) (=14)} 42. Rb2 {[%emt 0:00:11] CPLX 2.9} Kf5 {[%emt 0:00:40][%cal Oe7c5] CPLX 3.0 28 (Be7-d8) (=15)} 43. Ke1 {[%emt 0:00:27] CPLX 3.1 8 (Rb2xb7) (=14)} Rd7 {[%emt 0:00:01] CPLX 3.1} 44. Rb4 {[%emt 0:00:21] CPLX 3.0 0 (Rb2-b3) (=13)} Bf8 $2 {[%emt 0:01:14] MISSDEEP-Rd7-c7 180 (Rd7-c7) (=19)} (44... Rc7 $1 $11 {and Black stays safe.}) 45. Rb6 {[%emt 0:00:12] CPLX 3.0 133 (a2-a4) (=16)} (45. a4 $18 {is more deadly.}) 45... Be7 $16 {[%emt 0:00:07] DEEPSTRONG=>BLUNDERREACT} 46. Rb4 $2 {[%emt 0:00:22] RELBLUND 58 (Ne4-d6) (=18)} (46. Nd6+ $14 Bxd6 47. cxd6) 46... Bf8 $18 {[%emt 0:00:13] White leaves nothing to chance now. BESTDEEP} 47. a4 {[%emt 0:00:19] BESTDEEP} Rc7 {[%emt 0:00:27] CPLX 3.1 48 (Bf8-e7) (=19)} (47... Be7 $142 48. Kd2 Bg5+ 49. Nxg5 Kxg5) 48. Rb6 {[%emt 0:00:10][%csl Ge4][%cal Rb6f6] CPLX 3.1} Be7 {[%emt 0:00:04] Inhibits Rf6+. CPLX 3.5} 49. Kd2 {[%emt 0:00:06] CPLX 3.2 24 (a4-a5) (=17)} Rd7 {[%emt 0:00:04] CPLX 3.4 31 (Kf5-f4) (=18)} 50. Rb3 {[%emt 0:00:14] CPLX 3.3 23 (a4-a5) (=17)} Rd4 $2 {[%emt 0:00:29] CPLX 3.2 361 (Be7-g5) (=26)} (50... Bg5+ {is more resistant.} 51. Nxg5 Kxg5) 51. Rxb7 {[%emt 0:00:14] EASY} Bd8 {[%emt 0:00:02] CPLX 3.5 47 (Kf5-e6) (=27)} 52. Ra7 {[%emt 0:00:08] Against Ba5+. CPLX 3.3} Ke6 {[%emt 0:00:27] CPLX 3.3} 53. c6 {[%emt 0:00:06] Black must now prevent c7. BESTDEEP} Rc4 {[%emt 0:00:07] CPLX 3.5} 54. Ra6 {[%emt 0:00:08] Strongly threatening c7+. CPLX 3.8 47 (Ra7-g7) (=17)} Kd5 {[%emt 0:00:20] CPLX 3.5} 55. Kxd3 {[%emt 0:00:01] CPLX 3.6} Rd4+ {[%emt 0:00:02] CPLX 3.4 178 (Rc4xc6) (=28)} (55... Rxc6 {might work better.} 56. Ra8 Be7) 56. Ke3 {[%emt 0:00:07] CPLX 3.1} Rc4 {[%emt 0:00:02] BESTDEEP} 57. h3 {[%emt 0:00:24] CPLX 3.2 180 (c6-c7) (=19)} Bc7 $2 {[%emt 0:00:05] EVAL 400 (Rc4xc6) (=35)} (57... Rxc6 58. Ra8 Be7) 58. Kd3 {[%emt 0:00:02] CPLX 3.1 249 (Ne4-f6) (=24)} Rd4+ {[%emt 0:00:01] CPLX 3.3 27 (Bc7-d8) (=35)} 59. Kc2 {[%emt 0:00:04]} Rc4+ {[%emt 0:00:02]} 60. Kb3 {[%emt 0:00:09]} Kd4 {[%emt 0:00:03]} 61. a5 {[%emt 0:00:05]} Rc1 {[%emt 0:00:05]} 62. Ra8 {[%emt 0:00:12]} Kd5 $2 {[%emt 0:00:13]} (62... Rxc6 {was called for.} 63. Rc8 Kd3) 63. a6 {[%emt 0:00:17]} Rxc6 {[%emt 0:00:14]} 64. a7 {[%emt 0:00:12][%cal Oa8d8] Threatening mate with Rd8+!} Ra6 {[%emt 0:00:33]} 65. Nc3+ {[%emt 0:00:21]} Kc6 {[%emt 0:00:04] [#]} 66. Nb5 $1 {[%emt 0:00:14][%mdl 512]} Bb6 {[%emt 0:00:27]} (66... Kxb5 67. Rb8+) 67. Rc8+ {[%emt 0:00:08]} Kxb5 {[%emt 0:00:14]} 68. a8=Q {[%emt 0:00:01] White mates.} Rxa8 {[%emt 0:00:01]} 69. Rxa8 {[%emt 0:00:00]} Bxf2 {[%emt 0:00:03]} 70. Rg8 {[%emt 0:00:03] Weighted Error Value: White=0.26 (precise) /Black=0.34} 1-0

[Event "Julius Baer Generation Cup Prelims 2022"]
[Site "Online"]
[Date "2022.09.14"]
[Round "11.2"]
[White "Keymer, Vincent"]
[Black "Yoo, Christopher Woojin"]
[Result "1/2-1/2"]
[ECO "A26"]
[WhiteElo "2693"]
[BlackElo "2563"]
[Annotator "TA"]
[PlyCount "126"]
[EventDate "2022.09.12"]
[EventType "tourn"]
[EventCountry "NET"]
[SourceTitle "playchess.com"]
[Source "ChessBase"]
[SourceQuality "1"]
[TimeControl "900+10"]

{[%evp 21,126,19,25,26,34,50,37,33,40,22,17,19,25,16,42,11,44,29,58,65,64,66,95,95,68,64,37,45,78,0,0,0,0,0,68,22,44,0,42,0,0,0,0,0,0,0,0,0,0,0,0,0,0,0,20,8,8,8,10,21,21,36,63,0,0,0,20,28,314,310,29969,29962,29962,205,211,93,212,133,134,133,521,8,8,8,8,8,8,8,8,8,8,8,8,0,0,0,0,0,0,0,0,0,0,0,0,-8,-8]} 1. c4 {[%emt 0:00:00]} e5 {[%emt 0:00:00]} 2. d3 {[%emt 0:00:02]} Nf6 {[%emt 0:00:38]} 3. Nf3 {[%emt 0:00:02]} Nc6 {[%emt 0:00:26]} 4. a3 {[%emt 0:00:02]} a5 {[%emt 0:00:15]} 5. Nc3 {[%emt 0:00:08]} g6 {[%emt 0:00:06]} 6. g3 {[%emt 0:00:55]} Bg7 {[%emt 0:00:05]} 7. Bg2 {[%emt 0:00:01]} O-O {[%emt 0:00:37]} 8. O-O {[%emt 0:00:01]} d6 {[%emt 0:00:08]} 9. Rb1 {[%emt 0:00:50]} Bd7 {[%emt 0:02:18]} 10. b4 {[%emt 0:00:39]} axb4 {[%emt 0:00:00]} 11. axb4 {[%emt 0:00:01]} Qc8 {[%emt 0:00:30] CPLX 2.4 6 (Bd7-g4) (=6)} 12. Bg5 {[%emt 0:01:35] CPLX 2.4. A26: English Opening vs King's Indian with ...Nc6 and d3.} Bh3 {[%emt 0:01:29] MISSDEEP-Rf8-e8 8 (Rf8-e8) (=7)} 13. Bxf6 {[%emt 0:02:21] BESTDEEP} Bxf6 {[%emt 0:00:09] RECAPT} 14. Nd5 {[%emt 0:00:03] CPLX 2.8. White is slightly better.} Bd8 {[%emt 0:00:36] BESTDEEP} 15. Qd2 {[%emt 0:00:06] CPLX 3.0 18 (Bg2xh3) (=5)} Bxg2 {[%emt 0:00:24] CPLX 3.1} 16. Kxg2 {[%emt 0:00:04] [#] RECAPT} Ne7 $146 {[%emt 0:00:34] BESTDEEP} ({Predecessor:} 16... Kg7 17. Ra1 Ne7 18. Nc3 Ng8 19. Rxa8 Qxa8 20. Qb2 Qb8 21. Ra1 c6 22. Qa3 f5 {0-1 (42) Holleland,S (1812)-Goncalves,J (1999) Caleta 2014}) 17. Nc3 {[%emt 0:02:52] BESTDEEP} f5 {[%emt 0:01:09][%cal Bf7f5,Bf5f4][%mdl 32] CPLX 2.3 26 (Ne7-f5) (=6)} 18. c5 {[%emt 0:01:16] CPLX 2.1 31 (b4-b5) (=7)} Qe6 {[%emt 0:01:39] CPLX 2.4 33 (Ne7-c6) (=9)} 19. Ra1 {[%emt 0:00:04] CPLX 2.4} Rxa1 {[%emt 0:00:11] CPLX 2.8 29 (Ra8-b8) (=11)} 20. Rxa1 {[%emt 0:00:00] RECAPT} d5 {[%emt 0:00:40] BESTDEEP} 21. Ra8 {[%emt 0:01:21] White has more active pieces. The black rooks are badly placed. BESTDEEP} f4 {[%emt 0:01:46] CPLX 2.6 29 (d5-d4) (=12)} 22. Qa2 {[%emt 0:01:21] BESTDEEP} h6 {[%emt 0:00:52] CPLX 3.0} 23. b5 {[%emt 0:03:30] Black must now prevent Rb8. CPLX 3.1 4 (Kg2-f1) (=4)} g5 $1 {[%emt 0:00:30] CPLX 3.0} 24. h3 {[%emt 0:00:01] BESTDEEP} c6 {[%emt 0:00:47] CPLX 3.6 33 (f4xg3) (=12)} 25. Ne4 {[%emt 0:00:55] CPLX 3.9 78 (g3-g4) (=9)} (25. g4 $16) 25... fxg3 {[%emt 0:00:39] CPLX 4.2 0 (c6xb5) (=11)} 26. fxg3 {[%emt 0:00:23] RECAPT} Nf5 {[%emt 0:00:31] Against Nd6. CPLX 4.0} 27. g4 {[%emt 0:00:09] BESTDEEP} Ng7 {[%emt 0:01:23] MISSDEEP-Nf5-d4 68 (Nf5-d4) (=14)} (27... Ne3+ 28. Kf2 Nd1+ 29. Ke1 $14) (27... Nd4 $1 $11 28. Nxd4 exd4) 28. Ng3 {[%emt 0:00:22] CPLX 3.7 46 (Ne4-d6) (=10)} (28. Nd6 $1 $14) 28... cxb5 $11 {[%emt 0:00:49] EASY} 29. e3 {[%emt 0:00:42] CPLX 3.1 44 (Ra8-b8) (=12)} (29. Rb8 $5 {[%cal Rb8b7]}) 29... b6 {[%emt 0:00:34] CPLX 3.7 42 (Bd8-e7) (=14)} 30. c6 {[%emt 0:00:12] CPLX 3.9 42 (Ng3-f5) (=14)} (30. Nf5 $5 {[%cal Rc5b6]}) 30... Qxc6 {[%emt 0:00:04] BESTDEEP} 31. Nxe5 {[%emt 0:00:01] EASY} Qe6 {[%emt 0:00:00] CPLX 3.9} 32. d4 {[%emt 0:00:05] CPLX 3.9} Bf6 {[%emt 0:00:13] BESTDEEP} 33. Rxf8+ {[%emt 0:00:10] EASY} Kxf8 {[%emt 0:00:00] RECAPT} 34. Qa3+ {[%emt 0:00:22] BESTDEEP} Kg8 {[%emt 0:00:11] BESTDEEP} 35. Qa8+ {[%emt 0:00:06] EASY} (35. Ng6 Qe8 36. Ne5 Bxe5 37. dxe5 Qxe5 38. Qa8+ Kh7 $17) 35... Kh7 {[%emt 0:00:01] CPLX 3.3 0 (Ng7-e8) (=11)} 36. Nf3 {[%emt 0:00:15] Pair of Knights! CPLX 3.8} b4 {[%emt 0:00:13] CPLX 3.0 0 (Bf6-e7) (=11)} 37. Kf2 $1 {[%emt 0:00:02] DEEPSTRONG} b3 {[%emt 0:00:13][%cal Oh6h5] CPLX 3.6 20 (Bf6-e7) (=11)} 38. Qa3 {[%emt 0:00:12] CPLX 3.9 12 (Qa8-a6) (=10)} h5 {[%emt 0:00:06] BESTDEEP} 39. Qxb3 {[%emt 0:00:04] CPLX 3.7} hxg4 {[%emt 0:00:02] CPLX 4.2 2 (Kh7-h6) (=10)} 40. hxg4 {[%emt 0:00:01] RECAPT} Qxg4 {[%emt 0:00:12] CPLX 4.1 0 (Kh7-h6) (=10)} 41. Qxd5 {[%emt 0:00:10] EASY} Kg6 $1 {[%emt 0:00:04] DEEPSTRONG} 42. Qc6 {[%emt 0:00:11] CPLX 4.6 63 (Qd5-b5) (=11)} (42. Qb5 $14) 42... Qe6 {[%emt 0:00:02] EASY} 43. Qc2+ {[%emt 0:00:01] CPLX 4.8 0 (Qc6xe6) (=11)} Kh6 {[%emt 0:00:19] CPLX 4.4 20 (Ng7-f5) (=10)} 44. Nh2 $36 {[%emt 0:00:08][%mdl 2048] White is more active. BESTDEEP} g4 $2 {[%emt 0:00:08][%mdl 8192] RELBLUND 286 (Qe6-h3) (=18)} (44... Qh3 $11 {and Black stays safe.} 45. Nhf1 Qe6) 45. d5 $1 $18 {[%emt 0:00:15] CPLX 4.1=>BLUNDERREACT} Qf7 {[%emt 0:00:22] RELBLUND 400 (Qe6-d7) (=29)} (45... Qd7 $18 46. Qe4 Ba1 47. Nxg4+ Kg5) 46. Nxg4+ {[%emt 0:00:19] CPLX 3.5=>BLUNDERREACT} Kg5 {[%emt 0:00:01] [#] LEGAL} 47. Nxf6 $2 {[%emt 0:00:12] MISSDEEP-Ng3-e4 400 (Ng3-e4) (=21)} ({Stronger than} 47. Qe4 Be5+ 48. Qf3 (48. Kg2 Bxg3 49. Kxg3 Nh5+ 50. Kg2 Qf1+ 51. Kh2 Qe2+ 52. Kh3 Qf1+ 53. Kh2 Qe2+ 54. Kh3 Qf1+ 55. Kh2 $11) 48... Bxg3+ 49. Kxg3 Nf5+ 50. Kf2 Qc7 $11) (47. Ne4+ $1 {mates} Kxg4 48. Qd1+ Kf5 49. Nd6+ Kg5 50. Nxf7+ Kg6 51. Nd6 Kh6 52. Qg4) 47... Qxf6+ {[%emt 0:00:00][%mdl 4096] Endgame KQN-KQN. RECAPT} 48. Ke2 {[%emt 0:00:16] White threatens Ne4+ and mate. CPLX 3.2} Kg4 {[%emt 0:00:36] CPLX 3.4 119 (Qf6-e5) (=30)} (48... Qe5 $16) 49. Ne4 {[%emt 0:00:03] CPLX 4.1 79 (Ng3-f1) (=22)} Qf3+ {[%emt 0:00:01] [#] EASY} 50. Kd3 $1 {[%emt 0:00:10] Qc1 is the strong threat. DEEPSTRONG} Nf5 $2 {[%emt 0:00:06][%mdl 8192] MISSDEEP-Qf3-f1 388 (Qf3-f1) (=38)} (50... Qf1+ $16 {is tougher.} 51. Kc3 (51. Qe2+ Qxe2+ 52. Kxe2 Kf5 $11) 51... Qe1+ 52. Qd2 Qa1+ 53. Kc4 Qa6+ 54. Kb3 Qb5+ 55. Ka3 Qa6+ 56. Kb2 Qb5+ 57. Kc1 Qc4+ 58. Nc3 Nf5) 51. Qe2 $2 {[%emt 0:00:16] RELBLUND 400 (Qc2-f2) (=30)} (51. Qf2 $18 Qxf2 52. Nxf2+ Kf3 53. Nd1) 51... Qxe2+ $11 {[%emt 0:00:06] EASY. The position is equal.} 52. Kxe2 {[%emt 0:00:00] KN-KN. RECAPT} Ne7 {[%emt 0:00:01] DEEPSTRONG} 53. Nc3 {[%emt 0:00:24] And now Kd3 would win. CPLX 2.0 0 (d5-d6) (=29)} (53. d6 {with more complications.} Nc6 54. d7 Kf5 55. Nd6+) 53... Kf5 {[%emt 0:00:03] CPLX 2.0} 54. e4+ {[%emt 0:00:04] MISS-d5-d6 0 (d5-d6) (=28)} Ke5 {[%emt 0:00:01] EASY} 55. Kd3 {[%emt 0:00:14] CPLX 2.0 0 (Ke2-d2) (=28)} Nc8 {[%emt 0:00:02] BESTDEEP} 56. Nb5 {[%emt 0:00:12] EASY} Ne7 {[%emt 0:00:01] CPLX 2.0} 57. Kc4 {[%emt 0:00:09] CPLX 2.0 8 (Nb5-a3) (=27)} Kxe4 {[%emt 0:00:08] BESTDEEP} 58. d6 {[%emt 0:00:03] CPLX 2.0 0 (Nb5-d6) (=26)} Nc6 {[%emt 0:00:00] EASY} 59. Nc7 {[%emt 0:00:08] BESTDEEP} Ke5 {[%emt 0:00:03] BESTDEEP} 60. Kb5 {[%emt 0:00:02] CPLX 2.0 0 (Nc7-e8) (=25)} Kxd6 {[%emt 0:00:02] CPLX 2.2} 61. Kxb6 {[%emt 0:00:01] CPLX 2.0} Ne5 {[%emt 0:00:01] CPLX 2.0} 62. Nb5+ {[%emt 0:00:03] CPLX 2.0} Kd5 {[%emt 0:00:01] CPLX 2.0} 63. Nd4 {[%emt 0:00:00] CPLX 2.0 8 (Kb6-c7) (=24)} Kxd4 {[%emt 0:00:02] White really could win this.  Weighted Error Value: White=0.30/Black=0.37} 1/2-1/2